bitfinex-derivatives/quotes_SOLF0:USTF0_20250224
["timestamp","ask_amount","ask_price","bid_price","bid_amount"]
[1740385397875,8.56,159.2,159.08,6.2851]
[1740385398077,8.56,159.2,159.07,27.2391071]
[1740385398678,0.04299731,159.15,159.12,0.04502431]
[1740385398878,6.283,159.14,159.12,0.04502431]
[1740385399479,0.04299731,159.15,159.12,0.04502431]
[1740385399780,6.2834,159.13,159.12,0.04502431]
[1740385399976,6.2834,159.13,159.12,2.431e-05]
[1740385400881,27.28210441,159.15,158.91,176.80152464]
[1740385401075,27.2391071,159.1,158.99,1.8963]
[1740385401279,8.56,159.09,158.99,1.8963]
[1740385402179,0.04799315,159.06,159.02,0.04209036]
[1740385402380,6.2868,159.05,159.02,0.04209036]
[1740385402575,0.04799315,159.06,159.02,0.04209036]
[1740385402779,8.56,159.09,159.02,0.04209036]
[1740385403877,0.04650853,159.07,159.02,0.04209036]
[1740385405785,6.2872,159.04,159.02,0.04209036]
[1740385406084,0.04650853,159.07,159.02,0.04209036]
[1740385406481,6.2873,159.03,159.02,0.04209036]
[1740385408886,6.2873,159.03,159.02,9.036e-05]
[1740385410582,27.2391071,159.04,158.92,5.5657]
[1740385410780,27.2391071,159.01,158.92,5.5657]
[1740385410985,35.9591071,159.01,158.92,5.5657]
[1740385411583,8.72,159.01,158.92,5.5657]
[1740385411787,0.04728868,158.98,158.95,0.04717066]
[1740385412289,8.72,159.01,158.95,0.04717066]
[1740385413389,0.04011884,159.0,158.95,0.04717066]
[1740385414286,6.29,158.97,158.95,0.04717066]
[1740385414488,0.04011884,159.0,158.95,0.04717066]
[1740385414983,6.2901,158.96,158.95,0.04717066]
[1740385416087,6.2901,158.96,158.95,7.066e-05]
[1740385418291,7.94537727,158.96,158.95,7.066e-05]
[1740385418493,28.89420421,158.96,158.84,1.9584]
[1740385418794,27.2391071,158.98,158.8,295.34128491]
[1740385418795,27.2391071,158.91,158.83,27.57542083]
[1740385418991,10.7939345,158.9,158.83,25.67972083]
[1740385419196,6.2948,158.84,158.83,25.67972083]
[1740385420390,0.04798018,158.85,158.82,0.04615881]
[1740385420584,6.2952,158.83,158.82,0.04615881]
[1740385421088,27.28708728,158.85,158.77,25.67972083]
[1740385421294,27.2391071,158.81,158.77,25.67972083]
[1740385421590,27.2391071,158.81,158.77,15.77862083]
[1740385421591,37.7991071,158.81,158.77,15.77862083]
[1740385421789,6.2972,158.78,158.77,15.77862083]
[1740385422186,6.2976,158.77,158.76,63.81308357]
[1740385422395,27.2391071,158.78,158.75,103.34128491]
[1740385423892,27.2391071,158.75,158.72,215.34034837]
[1740385424601,0.04401587,158.76,158.72,215.34034837]
[1740385425602,6.2925,158.9,158.72,215.34034837]
[1740385425897,27.2391071,158.87,158.74,29.1307071]
[1740385426395,191.0664,158.94,158.77,27.2391071]
[1740385426598,27.2391071,158.92,158.78,1.8996]
[1740385426799,0.04022987,158.87,158.84,0.04471372]
[1740385428499,27.2391071,158.86,158.84,0.04471372]
[1740385428690,27.2391071,158.86,158.75,1.8996]
[1740385429194,27.2391071,158.86,158.76,6.2979]
[1740385429393,27.2391071,158.89,158.75,1.8996]
[1740385429599,1.64636535,158.88,158.75,1.8996]
[1740385429796,0.04557473,158.84,158.77,6.2975]
[1740385430299,0.04557473,158.84,158.78,6.2972]
[1740385430798,0.04557473,158.84,158.75,1.8996]
[1740385431001,0.04557473,158.84,158.79,6.2967]
[1740385431301,0.04557473,158.84,158.76,1.8722]
[1740385431908,0.04557473,158.84,158.8,6.296]
[1740385432097,0.04557473,158.84,158.76,1.8722]
[1740385433698,0.04557473,158.84,158.8,6.2961]
[1740385434097,0.04557473,158.84,158.76,1.8722]
[1740385434802,0.04557473,158.84,158.83,6.2952]
[1740385438197,0.04557473,158.84,158.76,1.8722]
[1740385438398,27.2391071,158.83,158.76,1.8722]
[1740385439304,1.65343689,158.82,158.69,1.9054]
[1740385439504,27.2391071,158.83,158.7,1.9361]
[1740385439704,0.04005284,158.77,158.7,3.8363]
[1740385440007,0.04005284,158.77,158.76,6.298]
[1740385440903,5.284e-05,158.77,158.76,6.298]
[1740385441207,5.284e-05,158.77,158.7,3.8363]
[1740385441909,5.284e-05,158.77,158.74,6.2987]
[1740385442104,27.23915994,158.77,158.72,0.04534319]
[1740385442305,27.2391071,158.74,158.72,0.04534319]
[1740385442509,1.65312959,158.73,158.72,0.04534319]
[1740385443306,27.2391071,158.74,158.72,0.04534319]
[1740385443307,5.284e-05,158.77,158.72,0.04534319]
[1740385444306,5.284e-05,158.77,158.73,6.2988]
[1740385444505,5.284e-05,158.77,158.72,0.04534319]
[1740385444700,27.2391071,158.76,158.72,0.04534319]
[1740385447815,5.284e-05,158.77,158.72,0.04534319]
[1740385448014,5.284e-05,158.77,158.74,6.2985]
[1740385448314,5.284e-05,158.77,158.72,0.04534319]
[1740385448515,5.284e-05,158.77,158.76,6.298]
[1740385450415,95.20966532,158.85,158.72,0.04534319]
[1740385450815,95.20966532,158.85,158.83,6.2951]
[1740385451019,67.97055822,158.85,158.83,6.2951]
[1740385451215,67.97055822,158.85,158.73,219.2391071]
[1740385451415,67.97055822,158.85,158.83,6.2951]
[1740385451926,33.5336071,158.85,158.71,27.2391071]
[1740385452123,33.5336071,158.85,158.82,0.04385048]
[1740385452423,6.2952,158.83,158.71,27.2391071]
[1740385452720,27.2391071,158.88,158.7,1.9682]
[1740385452925,0.03975196,158.79,158.75,0.04176804]
[1740385453120,27.2391071,158.81,158.7,1.9682]
[1740385453418,6.33733457,158.79,158.75,0.04446449]
[1740385454124,27.2391071,158.78,158.75,0.04446449]
[1740385454729,6.298,158.76,158.75,0.04446449]
[1740385455126,7.95734032,158.76,158.75,0.04446449]
[1740385455528,1.65934032,158.76,158.75,0.04446449]
[1740385456227,7.95734032,158.76,158.75,0.04446449]
[1740385456725,1.65934032,158.76,158.75,0.04446449]
[1740385459024,1.65934032,158.76,158.75,6.34286449]
[1740385459221,0.04043457,158.79,158.75,0.04446449]
[1740385460133,0.04043457,158.79,158.78,6.2972]
[1740385460832,74.26625822,158.82,158.79,6.2967]
[1740385461633,67.97055822,158.82,158.8,6.2964]
[1740385462226,74.26635822,158.82,158.79,6.34109605]
[1740385463227,6.2964,158.8,158.79,0.04439605]
[1740385463929,18.11189153,158.8,158.79,0.04439605]
[1740385464324,6.2964,158.8,158.79,0.04439605]
[1740385465125,6.2957,158.82,158.79,6.34119605]
[1740385465333,0.04577539,158.83,158.79,0.04439605]
[1740385465534,0.04577539,158.83,158.8,1.9665]
[1740385465831,0.04577539,158.83,158.82,6.2956]
[1740385467541,18.11962675,158.86,158.83,6.295]
[1740385468640,18.16436771,158.86,158.83,6.34292318]
[1740385470038,11.87006771,158.86,158.85,6.2944]
[1740385470937,0.04474096,158.86,158.85,6.2944]
[1740385471441,1.71249962,158.86,158.85,6.2944]
[1740385471941,11.82532675,158.88,158.83,0.04792318]
[1740385472140,1.66842778,158.87,158.86,6.2937]
[1740385472340,67.97055822,158.9,158.86,27.2391071]
[1740385472541,29.17785822,158.9,158.86,27.2391071]
[1740385472847,69.52679555,158.91,158.86,27.2391071]
[1740385473341,0.04670315,158.9,158.89,27.2391071]
[1740385473542,69.52679555,158.91,158.89,27.2391071]
[1740385473744,170.60626637,158.93,158.89,27.2391071]
[1740385474042,11.25688131,158.93,158.92,27.2391071]
[1740385474447,11.25688131,159.02,158.92,27.2391071]
[1740385474746,0.03967268,158.94,158.91,0.04645785]
[1740385474942,11.25688131,159.02,158.89,219.2391071]
[1740385475140,0.04749576,158.94,158.91,0.04502207]
[1740385475541,0.04790445,158.94,158.91,0.04330369]
[1740385477344,6.33890445,158.94,158.91,0.04330369]
[1740385478243,0.04790445,158.94,158.91,0.04330369]
[1740385481154,6.2917,158.92,158.91,0.04330369]
[1740385482746,6.2917,158.92,158.91,3.69e-06]
[1740385484048,6.2953,158.83,158.8,192.0]
[1740385484450,6.2948,158.85,158.8,192.0]
[1740385484652,27.2391071,158.91,158.8,192.0]
[1740385485050,6.2952,158.83,158.8,192.0]
[1740385485253,0.04477865,158.87,158.8,192.0]
[1740385485553,27.2391071,158.91,158.8,192.04566988]
[1740385485752,6.296,158.81,158.8,0.04566988]
[1740385485952,6.296,158.81,158.77,14.97233714]
[1740385486156,0.04311594,158.85,158.79,0.04489205]
[1740385486355,27.2391071,158.91,158.79,0.04489205]
[1740385486559,0.04687599,158.84,158.79,0.04489205]
[1740385486857,6.34177599,158.84,158.83,0.04819326]
[1740385487257,0.04687599,158.84,158.83,0.04819326]
[1740385488347,6.34167599,158.84,158.83,0.04819326]
[1740385489960,0.04687599,158.84,158.83,0.04819326]
[1740385490460,6.34167599,158.84,158.83,0.04819326]
[1740385490759,0.04687599,158.84,158.83,0.04819326]
[1740385491758,0.04687599,158.84,158.83,9.326e-05]
[1740385492655,6.34167599,158.84,158.83,9.326e-05]
[1740385495864,0.04687599,158.84,158.75,192.0]
[1740385496859,6.2964,158.81,158.77,6.2975]
[1740385497058,0.04687599,158.84,158.78,0.04114687]
[1740385497259,6.2964,158.81,158.78,0.04114687]
[1740385497464,0.04707888,158.83,158.78,0.04114687]
[1740385498060,6.2968,158.79,158.78,0.04114687]
[1740385502270,6.2961,158.81,158.78,0.04114687]
[1740385502473,0.04707888,158.83,158.78,0.04114687]
[1740385502975,0.04707888,158.83,158.81,6.2959]
[1740385503667,0.04707888,158.83,158.78,0.04114687]
[1740385503872,0.04707888,158.83,158.82,6.2956]
[1740385505573,7.888e-05,158.83,158.82,6.2956]
[1740385505774,27.2391071,158.96,158.78,192.04114687]
[1740385505974,3.7521,158.94,158.81,27.2391071]
[1740385506171,27.2391071,158.98,158.84,27.2391071]
[1740385506369,27.2391071,158.98,158.84,219.2391071]
[1740385506975,6.33968803,158.93,158.89,0.04447867]
[1740385508079,0.04838803,158.93,158.89,0.04447867]
[1740385508775,0.04838803,158.93,158.92,6.2917]
[1740385509881,0.04838803,158.93,158.89,0.04447867]
[1740385510380,6.33978803,158.93,158.89,0.04447867]
[1740385510977,0.04838803,158.93,158.89,0.04447867]
[1740385511176,6.292,158.92,158.89,0.04447867]
[1740385511381,0.04838803,158.93,158.91,27.2391071]
[1740385512777,0.04838803,158.93,158.89,0.04447867]
[1740385512980,6.2919,158.92,158.89,0.04447867]
[1740385513176,0.04838803,158.93,158.89,0.04447867]
[1740385513782,6.2923,158.91,158.89,0.04447867]
[1740385514184,6.2925,158.9,158.89,0.04447867]
[1740385514575,5.806,158.92,158.84,226.79454134]
[1740385514781,5.806,158.92,158.84,200.69863533]
[1740385515085,6.2942,158.86,158.84,200.69863533]
[1740385515284,5.806,158.92,158.84,8.69863533]
[1740385515788,6.2938,158.87,158.86,0.04110549]
[1740385516083,0.04153917,158.9,158.86,0.04110549]
[1740385517287,6.33403917,158.9,158.86,6.33490549]
[1740385517486,0.04153917,158.9,158.86,0.04110549]
[1740385517980,0.04153917,158.9,158.89,6.2929]
[1740385519083,3.86,158.98,158.87,27.2391071]
[1740385519283,3.86,158.98,158.87,219.2391071]
[1740385519684,29.1581071,158.97,158.84,27.2391071]
[1740385519980,29.1581071,158.97,158.83,34.79454134]
[1740385520183,6.2927,158.9,158.83,34.79454134]
[1740385520385,0.04785081,158.92,158.88,0.04069737]
[1740385520590,29.1581071,158.97,158.88,0.04069737]
[1740385520791,0.04535913,158.92,158.88,0.04069737]
[1740385520992,6.2929,158.89,158.88,0.04069737]
[1740385521191,3.8768,158.91,158.82,192.0]
[1740385521591,6.2934,158.88,158.84,6.2948]
[1740385522292,6.33412052,158.88,158.84,6.34021572]
[1740385522692,6.2937,158.87,158.84,6.34021572]
[1740385522892,6.2937,158.87,158.84,0.04541572]
[1740385524090,6.33422052,158.88,158.84,6.34021572]
[1740385524285,0.04072052,158.88,158.84,0.04541572]
[1740385525191,6.294,158.87,158.84,0.04541572]
[1740385525396,0.04072052,158.88,158.84,0.04541572]
[1740385526285,0.04072052,158.88,158.85,6.2944]
[1740385526494,0.04072052,158.88,158.84,0.04541572]
[1740385526693,1.8449,158.94,158.87,27.2391071]
[1740385526997,6.2909,158.94,158.9,6.2921]
[1740385527191,1.8196,158.98,158.9,27.2391071]
[1740385527393,6.2904,158.96,158.92,6.2914]
[1740385527690,1.8196,158.98,158.93,27.2391071]
[1740385527890,0.0417389,158.96,158.93,27.2391071]
[1740385528092,5.6995,159.05,158.93,27.2391071]
[1740385528400,5.6995,159.05,158.99,27.2391071]
[1740385528593,6.2873,159.04,158.99,33.5279071]
[1740385529193,0.04169109,159.03,159.0,0.04383784]
[1740385531490,0.04169109,159.03,158.93,192.0]
[1740385531691,1.9313,159.04,158.92,34.79454134]
[1740385532391,27.2391071,159.03,158.92,34.79454134]
[1740385532596,6.2912,158.94,158.92,34.79454134]
[1740385532995,27.2391071,159.03,158.9,27.2391071]
[1740385533194,0.04169241,158.95,158.91,0.04168924]
[1740385533388,27.2391071,159.03,158.9,27.2391071]
[1740385533593,0.04507624,158.95,158.91,6.3398734]
[1740385533797,27.2391071,159.03,158.91,0.04014462]
[1740385533995,0.04377265,158.95,158.9,27.2391071]
[1740385534298,27.2391071,159.03,158.95,0.04311875]
[1740385534502,6.291,158.94,158.9,27.2391071]
[1740385534801,6.291,158.94,158.9,27.28461947]
[1740385534999,0.04195294,158.94,158.9,27.28461947]
[1740385535500,0.04195294,158.94,158.9,0.04551237]
[1740385536698,6.2921,158.91,158.9,0.04551237]
[1740385537501,0.04195294,158.94,158.86,8.69863533]
[1740385537698,27.2391071,159.0,158.86,8.69863533]
[1740385537898,27.2391071,159.0,158.84,103.12268979]
[1740385538100,39.02147817,159.0,158.84,27.2391071]
[1740385538301,39.02147817,159.0,158.89,6.2927]
[1740385538495,12.5766,159.01,158.87,27.2391071]
[1740385538899,0.04620203,158.96,158.92,0.04235292]
[1740385540005,6.2913,158.93,158.92,0.04235292]
[1740385540409,6.2931,158.89,158.85,6.2944]
[1740385541504,6.33603095,158.89,158.85,6.34016446]
[1740385544406,0.04293095,158.89,158.85,0.04576446]
[1740385544606,0.04293095,158.89,158.86,6.2937]
[1740385545306,6.33593095,158.89,158.85,6.34006446]
[1740385545907,6.2938,158.87,158.85,0.04576446]
[1740385546107,0.04293095,158.89,158.85,0.04576446]
[1740385546909,0.04293095,158.89,158.83,8.69863533]
[1740385547107,27.28203805,158.89,158.82,76.79522403]
[1740385547407,6.2952,158.83,158.82,61.76862403]
[1740385547811,27.2391071,158.89,158.79,8.7111069]
[1740385548111,6.296,158.82,158.81,0.04042438]
[1740385549313,6.2964,158.8,158.79,8.7111069]
[1740385550512,0.0421351,158.84,158.73,1.9292]
[1740385551008,6.2982,158.76,158.71,6.2999]
[1740385551311,27.2391071,158.76,158.68,0.34577608]
[1740385551501,0.04235111,158.75,158.68,0.34577608]
[1740385552702,6.3008,158.69,158.68,0.34577608]
[1740385552913,27.2391071,158.76,158.68,0.34577608]
[1740385553212,0.04439353,158.7,158.68,0.34577608]
[1740385553512,27.2391071,158.76,158.68,0.34577608]
[1740385553708,0.04670866,158.71,158.68,0.34577608]
[1740385553909,6.34700866,158.71,158.68,0.34577608]
[1740385554112,0.04670866,158.71,158.68,0.34577608]
[1740385554705,6.3008,158.7,158.68,0.34577608]
[1740385554907,0.04670866,158.71,158.68,0.34577608]
[1740385555308,6.3008,158.69,158.68,0.34577608]
[1740385555505,0.04670866,158.71,158.59,29.0531071]
[1740385555704,27.2391071,158.73,158.59,29.0531071]
[1740385555910,6.34942932,158.67,158.59,29.0531071]
[1740385556115,0.04752932,158.67,158.59,29.0531071]
[1740385556920,0.04752932,158.67,158.62,27.2391071]
[1740385557315,0.04752932,158.67,158.64,6.3024]
[1740385557620,0.04752932,158.67,158.62,27.2391071]
[1740385558020,0.04752932,158.67,158.65,6.3023]
[1740385558520,0.04752932,158.67,158.62,27.2391071]
[1740385559122,0.04752932,158.67,158.62,33.5424071]
[1740385559423,0.04752932,158.67,158.62,27.2391071]
[1740385560222,6.34942932,158.67,158.62,33.5425071]
[1740385560623,0.04752932,158.67,158.62,27.2391071]
[1740385562424,6.3027,158.65,158.62,27.2391071]
[1740385563724,0.04752932,158.67,158.59,1.814]
[1740385563924,27.28663642,158.67,158.59,1.814]
[1740385564820,6.3044,158.6,158.59,1.814]
[1740385565126,27.2391071,158.7,158.59,1.814]
[1740385565322,6.3047,158.6,158.57,6.3055]
[1740385565531,27.2391071,158.67,158.55,3.6648]
[1740385565931,0.04651069,158.6,158.55,3.6648]
[1740385566229,27.2391071,158.62,158.54,0.34732897]
[1740385566527,0.04326239,158.59,158.54,0.34732897]
[1740385567324,6.3054,158.58,158.55,27.2391071]
[1740385567524,0.04326239,158.59,158.55,27.2391071]
[1740385568732,0.04326239,158.59,158.55,29.1138071]
[1740385569124,6.3052,158.58,158.55,29.1138071]
[1740385569533,0.04326239,158.59,158.55,29.1138071]
[1740385570228,6.3052,158.58,158.55,29.1138071]
[1740385570628,0.04326239,158.59,158.55,29.1138071]
[1740385570930,0.04326239,158.59,158.55,35.4200071]
[1740385571130,0.04326239,158.59,158.55,29.1138071]
[1740385572220,6.34836239,158.59,158.55,35.4199071]
[1740385572428,0.04326239,158.59,158.55,1.8747]
[1740385572931,6.3059,158.57,158.55,1.8747]
[1740385573131,0.04326239,158.59,158.55,1.8747]
[1740385573323,0.04326239,158.59,158.54,0.34732897]
[1740385573526,6.3064,158.55,158.54,0.34732897]
[1740385574531,6.3064,158.55,158.54,2.897e-05]
[1740385574827,6.24775116,158.55,158.54,2.897e-05]
[1740385577733,6.3103,158.45,158.44,1.8898]
[1740385578132,12.6122,158.56,158.44,1.8898]
[1740385578437,1.8482,158.58,158.49,27.2391071]
[1740385578638,0.04464539,158.52,158.49,27.2391071]
[1740385578841,0.04464539,158.52,158.49,33.5478071]
[1740385579033,0.04464539,158.52,158.49,27.2391071]
[1740385579637,0.04464539,158.52,158.46,27.2391071]
[1740385579833,0.04464539,158.52,158.49,27.2391071]
[1740385580028,6.35244539,158.52,158.49,27.2391071]
[1740385580537,0.04464539,158.52,158.44,27.6484909]
[1740385580739,0.04464539,158.52,158.44,54.887598]
[1740385580933,0.04464539,158.52,158.44,27.6484909]
[1740385581129,6.309,158.49,158.45,6.3101]
[1740385581337,0.04464539,158.52,158.44,27.6484909]
[1740385581641,1.879,158.62,158.49,33.5478071]
[1740385581642,0.04341753,158.5,158.49,33.5478071]
[1740385581837,1.879,158.62,158.49,33.5478071]
[1740385582038,1.879,158.62,158.49,27.2391071]
[1740385582442,1.879,158.62,158.5,1.8146]
[1740385582641,6.3067,158.55,158.5,8.1226]
[1740385583037,0.04458198,158.54,158.51,0.04483102]
[1740385583644,6.3075,158.53,158.51,0.04483102]
[1740385583938,0.04458198,158.54,158.51,0.04483102]
[1740385584738,6.3075,158.52,158.51,0.04483102]
[1740385585139,6.3075,158.52,158.51,68.67145476]
[1740385585641,1.879,158.62,158.51,68.67145476]
[1740385585837,27.2391071,158.59,158.51,68.67145476]
[1740385586044,27.2391071,158.59,158.51,68.62662374]
[1740385586243,1.879,158.62,158.51,68.62662374]
[1740385586741,1.879,158.62,158.55,0.0455327]
[1740385586742,0.04352745,158.58,158.55,0.0455327]
[1740385587339,6.306,158.56,158.55,0.0455327]
[1740385588344,0.04352745,158.58,158.51,5.88453292]
[1740385588638,6.3075,158.52,158.51,3.292e-05]
[1740385589042,6.3075,158.52,158.51,26.04922073]
[1740385590338,0.04517457,158.53,158.51,26.04922073]
[1740385591839,0.04517457,158.53,158.5,6.3520803]
[1740385592145,0.04517457,158.53,158.5,0.0438803]
[1740385592344,6.3079,158.51,158.5,0.0438803]
[1740385592936,0.04517457,158.53,158.5,0.0438803]
[1740385593339,0.04517457,158.53,158.51,6.3079]
[1740385593743,0.04517457,158.53,158.5,0.0438803]
[1740385593940,0.04517457,158.53,158.5,6.3521803]
[1740385594335,0.04517457,158.53,158.5,0.0438803]
[1740385594936,0.04517457,158.53,158.51,6.3079]
[1740385595542,0.04517457,158.53,158.52,6.3075]
[1740385598446,11.6959139,158.62,158.54,6.3067]
[1740385598748,11.6959139,158.62,158.51,1.9472]
[1740385598749,13.5991139,158.67,158.52,7.85953516]
[1740385598949,6.3046,158.6,158.52,7.85953516]
[1740385599144,6.3046,158.6,158.55,6.306]
[1740385599351,11.6959139,158.62,158.55,6.306]
[1740385599648,6.305,158.59,158.57,0.04091738]
[1740385600239,6.3052,158.58,158.57,0.04091738]
[1740385603349,6.305,158.59,158.57,0.04091738]
[1740385603551,0.04791131,158.6,158.57,0.04091738]
[1740385604548,6.3033,158.63,158.57,0.04091738]
[1740385604744,11.6959139,158.66,158.57,0.04091738]
[1740385604957,38.935021,158.66,158.57,0.04091738]
[1740385605345,6.3052,158.58,158.57,0.04091738]
[1740385605745,0.04452095,158.59,158.57,0.04091738]
[1740385606648,0.04452095,158.59,158.58,6.3052]
[1740385606856,13.70414699,158.67,158.57,0.04091738]
[1740385607047,11.80094699,158.67,158.57,27.2391071]
[1740385607249,27.2391071,158.69,158.61,6.3039]
[1740385607541,27.2391071,158.69,158.58,1.8863]
[1740385607942,6.303,158.64,158.6,6.304]
[1740385608151,6.303,158.64,158.62,0.04401426]
[1740385608850,0.04474044,158.65,158.62,0.04401426]
[1740385609049,11.80094699,158.68,158.62,0.04401426]
[1740385609250,11.80094699,158.68,158.63,27.2391071]
[1740385609455,6.3002,158.71,158.66,6.3019]
[1740385610250,0.04370705,158.7,158.67,0.04469664]
[1740385610655,0.04370705,158.7,158.67,0.04158736]
[1740385610656,0.04384724,158.7,158.67,0.04158736]
[1740385610857,6.3012,158.68,158.67,0.04158736]
[1740385611057,0.04384724,158.7,158.67,0.04158736]
[1740385612257,0.04384724,158.7,158.67,3.70038736]
[1740385612658,11.80094699,158.76,158.67,3.70038736]
[1740385612857,27.2391071,158.81,158.67,3.70038736]
[1740385613153,6.2976,158.78,158.72,6.2994]
[1740385613360,1.9661,158.83,158.69,27.2391071]
[1740385613659,18.08949832,158.8,158.75,6.2981]
[1740385613857,0.04199374,158.78,158.75,6.2981]
[1740385614062,0.04199374,158.78,158.74,0.04021551]
[1740385614358,0.04199374,158.78,158.74,6.33891551]
[1740385614551,0.04199374,158.78,158.74,0.04021551]
[1740385614755,6.2984,158.75,158.74,0.04021551]
[1740385615151,0.04199374,158.78,158.74,0.04021551]
[1740385617954,6.2984,158.75,158.74,0.04021551]
[1740385618460,27.2391071,158.75,158.6,27.2391071]
[1740385618661,27.2391071,158.75,158.64,6.3025]
[1740385618860,27.2391071,158.72,158.61,1.8349]
[1740385619159,27.2391071,158.69,158.61,1.8349]
[1740385619364,27.2391071,158.69,158.59,3.87]
[1740385619557,6.3028,158.64,158.63,0.04734311]
[1740385621058,6.3021,158.66,158.63,0.04734311]
[1740385621260,0.04707983,158.67,158.63,0.04734311]
[1740385621660,6.3024,158.65,158.63,0.04734311]
[1740385621864,0.04707983,158.67,158.63,0.04734311]
[1740385622362,0.04707983,158.67,158.63,27.28645021]
[1740385622556,27.2391071,158.75,158.64,1.9923]
[1740385623162,27.2391071,158.72,158.59,3.87]
[1740385623569,27.2391071,158.69,158.59,3.87]
[1740385623869,0.04181776,158.67,158.64,0.04216517]
[1740385625372,6.34351776,158.67,158.64,0.04216517]
[1740385625872,6.3021,158.66,158.64,0.04216517]
[1740385626072,0.04181776,158.67,158.64,0.04216517]
[1740385626965,6.3024,158.65,158.64,0.04216517]
[1740385627566,6.3044,158.6,158.59,1.9146]
[1740385628167,6.3044,158.6,158.56,6.3058]
[1740385628368,6.3049,158.59,158.55,3.8036]
[1740385628767,6.34572717,158.59,158.55,10.15439359]
[1740385628969,0.04082717,158.59,158.55,1.95229359]
[1740385629175,0.04082717,158.59,158.55,0.04469359]
[1740385629870,6.306,158.56,158.55,0.04469359]
[1740385633268,6.306,158.56,158.55,9.359e-05]
[1740385634778,6.3085,158.5,158.47,1.8722]
[1740385634975,27.2391071,158.54,158.44,3.808]
[1740385635375,6.3091,158.49,158.44,3.808]
[1740385635579,6.3091,158.49,158.45,6.31]
[1740385635975,6.34879961,158.49,158.45,0.04223764]
[1740385636173,0.03969961,158.49,158.45,0.04223764]
[1740385637680,27.2391071,158.59,158.46,27.2391071]
[1740385638275,6.3074,158.53,158.48,6.3088]
[1740385638771,0.04200271,158.52,158.49,0.04478877]
[1740385638974,1.9319,158.61,158.49,27.28389587]
[1740385639277,27.2391071,158.63,158.5,1.8936]
[1740385639672,27.2391071,158.63,158.51,1.9043]
[1740385639874,6.3054,158.58,158.54,6.3065]
[1740385640079,0.04585328,158.59,158.55,0.04604479]
[1740385641081,6.306,158.56,158.55,0.04604479]
[1740385641280,27.2391071,158.57,158.43,3.7979]
[1740385641482,27.2391071,158.54,158.43,3.7979]
[1740385641678,6.3088,158.49,158.45,6.3103]
[1740385641883,27.2391071,158.54,158.43,3.7979]
[1740385642588,0.0413977,158.5,158.47,0.04559772]
[1740385643178,6.3091,158.48,158.47,0.04559772]
[1740385643387,27.2391071,158.48,158.39,8.75394781]
[1740385643682,6.3112,158.43,158.39,15.06654781]
[1740385643880,0.3312,158.58,158.39,53.51319632]
[1740385644082,0.3312,158.58,158.42,44.75924851]
[1740385644083,44.75924851,158.56,158.42,44.75924851]
[1740385644280,44.75924851,158.53,158.43,3.9905]
[1740385644584,0.04379116,158.51,158.47,0.04534915]
[1740385645586,0.04379116,158.51,158.5,6.3083]
[1740385645981,44.75924851,158.59,158.5,6.3083]
[1740385646178,6.3062,158.56,158.51,6.3078]
[1740385646381,237.63994851,158.62,158.48,46.59174851]
[1740385646588,6.3056,158.57,158.52,6.3075]
[1740385646789,237.63994851,158.62,158.48,46.59174851]
[1740385647183,6.35291674,158.57,158.53,6.35437442]
[1740385647381,0.04721674,158.57,158.53,0.04747442]
[1740385648178,6.306,158.56,158.53,0.04747442]
[1740385648383,0.04721674,158.57,158.53,0.04747442]
[1740385650076,6.3067,158.54,158.53,0.04747442]
[1740385650889,0.04721674,158.57,158.43,3.9905]
[1740385650890,6.3087,158.5,158.43,3.9905]
[1740385651077,44.75924851,158.53,158.43,12.1674]
[1740385651284,44.75924851,158.53,158.43,5.8565]
[1740385651477,44.75924851,158.5,158.43,2.0018]
[1740385651682,44.75924851,158.5,158.39,8.75394781]
[1740385651884,6.3122,158.41,158.39,8.75394781]
[1740385652085,0.04226937,158.46,158.39,8.75394781]
[1740385652285,44.75924851,158.47,158.39,8.75394781]
[1740385652582,6.3119,158.41,158.39,8.75394781]
[1740385652785,0.04274839,158.44,158.41,0.04635916]
[1740385652985,6.3115,158.42,158.41,0.04635916]
[1740385654589,0.04274839,158.44,158.41,0.04635916]
[1740385654986,1.9634,158.52,158.41,44.80560767]
[1740385655192,6.308,158.51,158.42,3.8044]
[1740385655393,44.75924851,158.56,158.42,3.8044]
[1740385656191,6.3086,158.5,158.42,3.8044]
[1740385656490,44.75924851,158.56,158.47,0.0423856]
[1740385656987,0.04827182,158.53,158.47,0.0423856]
[1740385659195,6.3078,158.52,158.47,6.3515856]
[1740385659396,0.04827182,158.53,158.47,0.0423856]
[1740385660285,6.3087,158.5,158.47,0.0423856]
[1740385661096,6.3087,158.49,158.47,0.0423856]
[1740385661292,0.04827182,158.53,158.47,0.0423856]